[Event "Betsys MČR v online bleskovém šachu 2021"]
[Site "Chess.com"]
[Date "2021.04.17"]
[Round "13"]
[White "ghostdog777"]
[Black "stripe122"]
[Result "1-0"]
[WhiteElo "2019"]
[BlackElo "1808"]
[TimeControl "180+1"]
[EndTime "11:06:18 PDT"]
[Termination "Uživatel ghostdog777 zvítězil matem"]

1. e4 {[%clk 0:03:00.9]} 1... c5 {[%clk 0:02:59.3]} 2. Nf3 {[%clk 0:03:00.7]}
2... d6 {[%clk 0:02:59]} 3. Bb5+ {[%clk 0:03:01.1]} 3... Bd7 {[%clk 0:02:58.6]}
4. Bxd7+ {[%clk 0:02:53.6]} 4... Nxd7 {[%clk 0:02:59.5]} 5. O-O {[%clk
0:02:53.7]} 5... Ngf6 {[%clk 0:02:58.3]} 6. Re1 {[%clk 0:02:54.1]} 6... g6
{[%clk 0:02:58.4]} 7. e5 {[%clk 0:02:53.6]} 7... Bg7 {[%clk 0:02:59.3]} 8. exf6
{[%clk 0:02:53.4]} 8... Bxf6 {[%clk 0:02:57.8]} 9. d3 {[%clk 0:02:51.9]} 9...
O-O {[%clk 0:02:57.3]} 10. Nc3 {[%clk 0:02:51.6]} 10... Qa5 {[%clk 0:02:56.5]}
11. Bg5 {[%clk 0:02:50.7]} 11... Bxc3 {[%clk 0:02:52.1]} 12. bxc3 {[%clk
0:02:49.8]} 12... Qxc3 {[%clk 0:02:53]} 13. Bxe7 {[%clk 0:02:49.5]} 13... Rfc8
{[%clk 0:02:51.8]} 14. Bxd6 {[%clk 0:02:49]} 14... Nb6 {[%clk 0:02:51]} 15. Be5
{[%clk 0:02:47.2]} 15... Qa3 {[%clk 0:02:49.3]} 16. Qd2 {[%clk 0:02:46.5]} 16...
c4 {[%clk 0:02:48.7]} 17. Qh6 {[%clk 0:02:43.2]} 17... Qf8 {[%clk 0:02:45.4]}
18. Qxf8+ {[%clk 0:02:43.2]} 18... Kxf8 {[%clk 0:02:46.2]} 19. d4 {[%clk
0:02:42.5]} 19... c3 {[%clk 0:02:43.2]} 20. Rab1 {[%clk 0:02:41.4]} 20... f5
{[%clk 0:02:33.4]} 21. Bd6+ {[%clk 0:02:37.6]} 21... Kg7 {[%clk 0:02:31]} 22.
Re7+ {[%clk 0:02:37.4]} 22... Kh6 {[%clk 0:02:29.9]} 23. Bf4+ {[%clk 0:02:26.7]}
23... Kh5 {[%clk 0:02:29.4]} 24. Rxh7+ {[%clk 0:02:21.5]} 24... Kg4 {[%clk
0:02:28.6]} 25. Be5 {[%clk 0:02:20.6]} 25... g5 {[%clk 0:02:25.3]} 26. h3#
{[%clk 0:02:20.2]} 1-0

[Event "Betsys MČR v online bleskovém šachu 2021"]
[Site "Chess.com"]
[Date "2021.04.17"]
[Round "13"]
[White "Tlaskin"]
[Black "pudltomik"]
[Result "1-0"]
[WhiteElo "1313"]
[BlackElo "773"]
[TimeControl "180+1"]
[EndTime "11:06:22 PDT"]
[Termination "Uživatel Tlaskin zvítězil matem"]

1. e4 {[%clk 0:03:00.9]} 1... e5 {[%clk 0:02:58.7]} 2. Nf3 {[%clk 0:02:59]} 2...
Nc6 {[%clk 0:02:57.6]} 3. Nc3 {[%clk 0:02:57.9]} 3... Nf6 {[%clk 0:02:56.3]} 4.
d4 {[%clk 0:02:56.9]} 4... d6 {[%clk 0:02:50]} 5. dxe5 {[%clk 0:02:54.2]} 5...
Nxe5 {[%clk 0:02:48.9]} 6. Nxe5 {[%clk 0:02:53]} 6... dxe5 {[%clk 0:02:47]} 7.
Qxd8+ {[%clk 0:02:52.3]} 7... Kxd8 {[%clk 0:02:46.6]} 8. Bg5 {[%clk 0:02:52.1]}
8... Be7 {[%clk 0:02:44.1]} 9. O-O-O+ {[%clk 0:02:51.1]} 9... Ke8 {[%clk
0:02:42.5]} 10. f3 {[%clk 0:02:28.6]} 10... Bd7 {[%clk 0:02:41.1]} 11. Bc4
{[%clk 0:02:19.9]} 11... Nh5 {[%clk 0:02:31.9]} 12. Bxe7 {[%clk 0:02:09.1]}
12... Kxe7 {[%clk 0:02:30.3]} 13. Nd5+ {[%clk 0:02:08.3]} 13... Kf8 {[%clk
0:02:29.5]} 14. Nxc7 {[%clk 0:02:03.4]} 14... Rc8 {[%clk 0:02:28.8]} 15. Rxd7
{[%clk 0:02:02.3]} 15... Nf6 {[%clk 0:02:24]} 16. Rxf7+ {[%clk 0:01:59.9]} 16...
Kg8 {[%clk 0:02:21]} 17. Rxf6# {[%clk 0:01:59]} 1-0

[Event "Betsys MČR v online bleskovém šachu 2021"]
[Site "Chess.com"]
[Date "2021.04.17"]
[Round "13"]
[White "conysek"]
[Black "HonzaRubes95"]
[Result "0-1"]
[WhiteElo "2137"]
[BlackElo "2461"]
[TimeControl "180+1"]
[EndTime "11:06:28 PDT"]
[Termination "Uživatel HonzaRubes95 zvítězil po vzdání soupeře"]

1. e4 {[%clk 0:03:00.9]} 1... e5 {[%clk 0:02:58.2]} 2. Nf3 {[%clk 0:03:01]} 2...
Nc6 {[%clk 0:02:57.6]} 3. Bb5 {[%clk 0:03:01.2]} 3... a6 {[%clk 0:02:57.2]} 4.
Ba4 {[%clk 0:03:01.4]} 4... Nf6 {[%clk 0:02:57.4]} 5. O-O {[%clk 0:03:01.4]}
5... Be7 {[%clk 0:02:57.4]} 6. Re1 {[%clk 0:03:01.7]} 6... b5 {[%clk 0:02:56.8]}
7. Bb3 {[%clk 0:03:01.8]} 7... O-O {[%clk 0:02:56.2]} 8. h3 {[%clk 0:03:02.3]}
8... Bb7 {[%clk 0:02:47.5]} 9. c3 {[%clk 0:03:02.3]} 9... d5 {[%clk 0:02:47.7]}
10. exd5 {[%clk 0:03:00.9]} 10... Nxd5 {[%clk 0:02:48.1]} 11. Nxe5 {[%clk
0:02:59]} 11... Nxe5 {[%clk 0:02:48.4]} 12. Rxe5 {[%clk 0:02:59.1]} 12... Nf4
{[%clk 0:02:34.4]} 13. f3 {[%clk 0:02:43.5]} 13... Nd3 {[%clk 0:02:32.1]} 14.
Re2 {[%clk 0:02:27.3]} 14... Bc5+ {[%clk 0:02:29.4]} 15. Kf1 {[%clk 0:02:27.7]}
15... Qd6 {[%clk 0:02:25.2]} 16. Bc2 {[%clk 0:02:19.8]} 16... Qh2 {[%clk
0:02:24.4]} 17. Re3 {[%clk 0:02:17.6]} 17... Qh1+ {[%clk 0:02:21.1]} 18. Ke2
{[%clk 0:02:17.5]} 18... Nxc1+ {[%clk 0:02:21.4]} 19. Kf2 {[%clk 0:02:13.4]}
19... Qxd1 {[%clk 0:02:20.7]} 20. Bxd1 {[%clk 0:02:13.8]} 20... Bxe3+ {[%clk
0:02:19.9]} 21. dxe3 {[%clk 0:02:14.7]} 21... Nd3+ {[%clk 0:02:20]} 22. Kg1
{[%clk 0:02:10.7]} 22... Nxb2 {[%clk 0:02:20.9]} 23. Bb3 {[%clk 0:02:10.5]} 0-1

[Event "Betsys MČR v online bleskovém šachu 2021"]
[Site "Chess.com"]
[Date "2021.04.17"]
[Round "13"]
[White "JonasFadrny"]
[Black "misacz"]
[Result "0-1"]
[WhiteElo "740"]
[BlackElo "1060"]
[TimeControl "180+1"]
[EndTime "11:07:08 PDT"]
[Termination "Uživatel misacz zvítězil matem"]

1. d4 {[%clk 0:03:00.9]} 1... Nf6 {[%clk 0:02:59.1]} 2. Nc3 {[%clk 0:03:01.2]}
2... e6 {[%clk 0:02:59]} 3. Nf3 {[%clk 0:03:00]} 3... d5 {[%clk 0:02:58.8]} 4.
Ne5 {[%clk 0:02:57.8]} 4... c5 {[%clk 0:02:58]} 5. Be3 {[%clk 0:02:51.7]} 5...
Nbd7 {[%clk 0:02:55.1]} 6. Nxd7 {[%clk 0:02:49.7]} 6... Qxd7 {[%clk 0:02:56]} 7.
dxc5 {[%clk 0:02:47.5]} 7... Qc7 {[%clk 0:02:52.9]} 8. b3 {[%clk 0:02:43.6]}
8... Bxc5 {[%clk 0:02:52]} 9. Bxc5 {[%clk 0:02:42.2]} 9... Qxc5 {[%clk
0:02:52.9]} 10. Qd2 {[%clk 0:02:38.4]} 10... Bd7 {[%clk 0:02:50.4]} 11. e3
{[%clk 0:02:36.5]} 11... Rc8 {[%clk 0:02:46.9]} 12. Bd3 {[%clk 0:02:31.7]} 12...
Qxc3 {[%clk 0:02:45.8]} 13. Qxc3 {[%clk 0:02:31.5]} 13... Rxc3 {[%clk
0:02:46.7]} 14. O-O-O {[%clk 0:02:29.4]} 14... Ke7 {[%clk 0:02:39.9]} 15. Kd2
{[%clk 0:02:27.3]} 15... Rhc8 {[%clk 0:02:39.4]} 16. Rc1 {[%clk 0:02:26.3]}
16... Ne4+ {[%clk 0:02:38.1]} 17. Ke1 {[%clk 0:02:20.3]} 17... Rxd3 {[%clk
0:02:31]} 18. Ke2 {[%clk 0:02:17.5]} 18... Rd2+ {[%clk 0:02:26]} 19. Kf3 {[%clk
0:02:15.1]} 19... Rcxc2 {[%clk 0:02:26.9]} 20. Rxc2 {[%clk 0:02:13.9]} 20...
Rxc2 {[%clk 0:02:27.4]} 21. Rb1 {[%clk 0:02:07.9]} 21... Rxf2+ {[%clk
0:02:25.4]} 22. Kg4 {[%clk 0:02:01.2]} 22... e5+ {[%clk 0:02:25.4]} 23. Kh5
{[%clk 0:01:58]} 23... Nf6+ {[%clk 0:02:21.2]} 24. Kh4 {[%clk 0:01:53.2]} 24...
Rxg2 {[%clk 0:02:20.3]} 25. a4 {[%clk 0:01:45.2]} 25... g5# {[%clk 0:02:13]} 0-1

[Event "Betsys MČR v online bleskovém šachu 2021"]
[Site "Chess.com"]
[Date "2021.04.17"]
[Round "13"]
[White "Krtecci"]
[Black "pohoda1966"]
[Result "1-0"]
[WhiteElo "2052"]
[BlackElo "1717"]
[TimeControl "180+1"]
[EndTime "11:07:12 PDT"]
[Termination "Uživatel Krtecci zvítězil po vzdání soupeře"]

1. e4 {[%clk 0:02:54.9]} 1... e5 {[%clk 0:02:59.4]} 2. Nf3 {[%clk 0:02:54.7]}
2... Nc6 {[%clk 0:02:59.3]} 3. d4 {[%clk 0:02:55.2]} 3... exd4 {[%clk
0:02:58.7]} 4. Nxd4 {[%clk 0:02:55.8]} 4... d6 {[%clk 0:02:56.5]} 5. Nc3 {[%clk
0:02:54.9]} 5... a6 {[%clk 0:02:55.9]} 6. Bc4 {[%clk 0:02:51.7]} 6... g6 {[%clk
0:02:55.2]} 7. O-O {[%clk 0:02:48.2]} 7... Bg7 {[%clk 0:02:54.9]} 8. Nxc6 {[%clk
0:02:48.4]} 8... bxc6 {[%clk 0:02:54.1]} 9. f4 {[%clk 0:02:43.9]} 9... Ne7
{[%clk 0:02:53.6]} 10. f5 {[%clk 0:02:38]} 10... gxf5 {[%clk 0:02:50.9]} 11.
exf5 {[%clk 0:02:38.4]} 11... Bxf5 {[%clk 0:02:41.9]} 12. Bg5 {[%clk 0:02:35.1]}
12... Be6 {[%clk 0:02:25.8]} 13. Bxe6 {[%clk 0:02:30.4]} 13... fxe6 {[%clk
0:02:25.2]} 14. Qh5+ {[%clk 0:02:30.8]} 14... Kd7 {[%clk 0:02:03.4]} 15. Rf7
{[%clk 0:02:30.6]} 15... Bf8 {[%clk 0:01:56.6]} 16. Raf1 {[%clk 0:02:26.4]}
16... Qe8 {[%clk 0:01:50.4]} 17. Rxe7+ {[%clk 0:02:15.6]} 17... Bxe7 {[%clk
0:01:43.1]} 18. Rf7 {[%clk 0:02:16]} 1-0

[Event "Betsys MČR v online bleskovém šachu 2021"]
[Site "Chess.com"]
[Date "2021.04.17"]
[Round "13"]
[White "VOJTASEK2009"]
[Black "AdeeJa"]
[Result "0-1"]
[WhiteElo "1289"]
[BlackElo "1650"]
[TimeControl "180+1"]
[EndTime "11:07:12 PDT"]
[Termination "Uživatel AdeeJa zvítězil po vzdání soupeře"]

1. e4 {[%clk 0:02:45.4]} 1... c5 {[%clk 0:02:59.5]} 2. Nf3 {[%clk 0:02:44.4]}
2... Nc6 {[%clk 0:02:59.5]} 3. d4 {[%clk 0:02:44.6]} 3... cxd4 {[%clk
0:02:59.8]} 4. Nxd4 {[%clk 0:02:44.7]} 4... g6 {[%clk 0:03:00.2]} 5. Nc3 {[%clk
0:02:44.6]} 5... Bg7 {[%clk 0:03:00.5]} 6. Be2 {[%clk 0:02:45]} 6... Nf6 {[%clk
0:03:00.7]} 7. Be3 {[%clk 0:02:44.3]} 7... O-O {[%clk 0:03:00.6]} 8. O-O {[%clk
0:02:43.6]} 8... d5 {[%clk 0:02:59.9]} 9. exd5 {[%clk 0:02:42.7]} 9... Nxd5
{[%clk 0:02:59.3]} 10. Nxd5 {[%clk 0:02:41.2]} 10... Nxd4 {[%clk 0:02:44.3]} 11.
Bxd4 {[%clk 0:02:39.5]} 11... Qxd5 {[%clk 0:02:36.3]} 12. Bxg7 {[%clk 0:02:39]}
12... Qxd1 {[%clk 0:02:34.4]} 13. Raxd1 {[%clk 0:02:33.9]} 13... Kxg7 {[%clk
0:02:34.6]} 14. Bf3 {[%clk 0:02:30.4]} 14... Be6 {[%clk 0:02:29.3]} 15. Rfe1
{[%clk 0:02:28.8]} 15... Rac8 {[%clk 0:02:24.5]} 16. c3 {[%clk 0:02:27.6]} 16...
b6 {[%clk 0:02:24.1]} 17. a3 {[%clk 0:02:24.8]} 17... Rfd8 {[%clk 0:02:20.8]}
18. Rxd8 {[%clk 0:02:22.1]} 18... Rxd8 {[%clk 0:02:20.1]} 19. h3 {[%clk
0:02:22.2]} 19... Rd2 {[%clk 0:02:17.5]} 20. Rb1 {[%clk 0:02:19.2]} 20... Ba2
{[%clk 0:02:06.2]} 21. Re1 {[%clk 0:02:16.4]} 21... Kf6 {[%clk 0:02:04.1]} 22.
g4 {[%clk 0:02:13.6]} 22... Rxb2 {[%clk 0:02:00.5]} 23. g5+ {[%clk 0:02:13.7]}
23... Kxg5 {[%clk 0:01:58.7]} 24. Rxe7 {[%clk 0:02:13.6]} 24... Kf4 {[%clk
0:01:57.2]} 25. Bd5 {[%clk 0:02:08.3]} 25... Bxd5 {[%clk 0:01:56.2]} 26. Rxa7
{[%clk 0:02:06.4]} 26... Kf3 {[%clk 0:01:51.4]} 27. Rxf7+ {[%clk 0:02:06.3]}
27... Bxf7 {[%clk 0:01:50.5]} 0-1

[Event "Betsys MČR v online bleskovém šachu 2021"]
[Site "Chess.com"]
[Date "2021.04.17"]
[Round "13"]
[White "ritchi12"]
[Black "Marcus_Aurelius_CZ"]
[Result "0-1"]
[WhiteElo "1131"]
[BlackElo "1423"]
[TimeControl "180+1"]
[EndTime "11:07:22 PDT"]
[Termination "Uživatel Marcus_Aurelius_CZ zvítězil matem"]

1. e4 {[%clk 0:03:00.9]} 1... e6 {[%clk 0:02:59.6]} 2. Nf3 {[%clk 0:03:00.1]}
2... d5 {[%clk 0:03:00.2]} 3. exd5 {[%clk 0:02:58.2]} 3... exd5 {[%clk
0:03:00.7]} 4. Qe2+ {[%clk 0:02:58.5]} 4... Qe7 {[%clk 0:02:58.8]} 5. Qxe7+
{[%clk 0:02:57.9]} 5... Bxe7 {[%clk 0:02:59.3]} 6. Bb5+ {[%clk 0:02:56.8]} 6...
c6 {[%clk 0:02:58.9]} 7. Ba4 {[%clk 0:02:56.8]} 7... Nf6 {[%clk 0:02:56.6]} 8.
O-O {[%clk 0:02:56.8]} 8... O-O {[%clk 0:02:56.8]} 9. d4 {[%clk 0:02:55.6]} 9...
Bg4 {[%clk 0:02:55.8]} 10. Ne5 {[%clk 0:02:54.4]} 10... Nbd7 {[%clk 0:02:53]}
11. Nxd7 {[%clk 0:02:53.1]} 11... Bxd7 {[%clk 0:02:51.5]} 12. Bg5 {[%clk
0:02:50.2]} 12... h6 {[%clk 0:02:49.6]} 13. Bxf6 {[%clk 0:02:50.2]} 13... Bxf6
{[%clk 0:02:48.8]} 14. Nd2 {[%clk 0:02:50.2]} 14... Bxd4 {[%clk 0:02:47.9]} 15.
Nf3 {[%clk 0:02:49.9]} 15... Bxb2 {[%clk 0:02:47.3]} 16. Rab1 {[%clk 0:02:49.4]}
16... Bf6 {[%clk 0:02:38.2]} 17. Rxb7 {[%clk 0:02:49.2]} 17... Bg4 {[%clk
0:02:37.6]} 18. Nd2 {[%clk 0:02:46.6]} 18... Rfc8 {[%clk 0:02:31.9]} 19. Nb3
{[%clk 0:02:45]} 19... Be2 {[%clk 0:02:27.5]} 20. Re1 {[%clk 0:02:43.4]} 20...
Ba6 {[%clk 0:02:24.6]} 21. Rb4 {[%clk 0:02:36.4]} 21... Bc3 {[%clk 0:02:22.9]}
22. Rf4 {[%clk 0:02:34.9]} 22... Bxe1 {[%clk 0:02:22.6]} 23. Nc5 {[%clk
0:02:32]} 23... Bd2 {[%clk 0:02:19.6]} 24. Rf3 {[%clk 0:02:30.9]} 24... Re8
{[%clk 0:02:18.6]} 25. g4 {[%clk 0:02:29.4]} 25... Be2 {[%clk 0:02:15.8]} 26.
Rb3 {[%clk 0:02:27.7]} 26... Bxg4 {[%clk 0:02:11.8]} 27. Kg2 {[%clk 0:02:27.7]}
27... Rab8 {[%clk 0:02:06.2]} 28. Rg3 {[%clk 0:02:18.9]} 28... Bf5 {[%clk
0:02:00.1]} 29. Bxc6 {[%clk 0:02:17.4]} 29... Be4+ {[%clk 0:01:57.9]} 30. Kh3
{[%clk 0:02:15.1]} 30... Re5 {[%clk 0:01:54.9]} 31. Nd7 {[%clk 0:02:13.1]} 31...
Rh5+ {[%clk 0:01:53.1]} 32. Kg4 {[%clk 0:02:13]} 32... g6 {[%clk 0:01:51.4]} 33.
Nxb8 {[%clk 0:02:08.5]} 33... f5# {[%clk 0:01:50.8]} 0-1

[Event "Betsys MČR v online bleskovém šachu 2021"]
[Site "Chess.com"]
[Date "2021.04.17"]
[Round "13"]
[White "Devasales"]
[Black "LiborRojar"]
[Result "0-1"]
[WhiteElo "1823"]
[BlackElo "2069"]
[TimeControl "180+1"]
[EndTime "11:07:30 PDT"]
[Termination "Uživatel LiborRojar zvítězil po vzdání soupeře"]

1. e4 {[%clk 0:03:00.9]} 1... c6 {[%clk 0:02:59]} 2. d4 {[%clk 0:03:00.1]} 2...
d5 {[%clk 0:02:59]} 3. e5 {[%clk 0:03:00]} 3... Bf5 {[%clk 0:02:58.7]} 4. g4
{[%clk 0:02:59.7]} 4... Bg6 {[%clk 0:02:58.2]} 5. h4 {[%clk 0:02:56.7]} 5... h5
{[%clk 0:02:55.2]} 6. g5 {[%clk 0:02:56]} 6... e6 {[%clk 0:02:53]} 7. Bd3 {[%clk
0:02:53.2]} 7... Bxd3 {[%clk 0:02:50.8]} 8. Qxd3 {[%clk 0:02:52.7]} 8... Qa5+
{[%clk 0:02:50.6]} 9. c3 {[%clk 0:02:49.9]} 9... Qa6 {[%clk 0:02:50.7]} 10. Qc2
{[%clk 0:02:43.3]} 10... c5 {[%clk 0:02:47.1]} 11. Nf3 {[%clk 0:02:41.3]} 11...
Nc6 {[%clk 0:02:44.4]} 12. Be3 {[%clk 0:02:27.6]} 12... cxd4 {[%clk 0:02:40.3]}
13. Bxd4 {[%clk 0:02:24.7]} 13... Nge7 {[%clk 0:02:29.1]} 14. Nbd2 {[%clk
0:02:13.9]} 14... Rc8 {[%clk 0:02:22.3]} 15. Nb3 {[%clk 0:02:10.3]} 15... Nf5
{[%clk 0:02:05.2]} 16. Rc1 {[%clk 0:01:44.1]} 16... Nb4 {[%clk 0:01:48]} 17. Qe2
{[%clk 0:01:40.5]} 17... Nd3+ {[%clk 0:01:44.5]} 18. Kd2 {[%clk 0:01:40.3]}
18... Nxc1 {[%clk 0:01:43.8]} 19. Qxa6 {[%clk 0:01:39.4]} 19... Nxb3+ {[%clk
0:01:40]} 0-1

[Event "Betsys MČR v online bleskovém šachu 2021"]
[Site "Chess.com"]
[Date "2021.04.17"]
[Round "13"]
[White "Honzik1950"]
[Black "polik1112"]
[Result "0-1"]
[WhiteElo "1485"]
[BlackElo "1397"]
[TimeControl "180+1"]
[EndTime "11:07:35 PDT"]
[Termination "Uživatel polik1112 zvítězil po vzdání soupeře"]

1. e4 {[%clk 0:02:57.7]} 1... e6 {[%clk 0:02:58.7]} 2. d4 {[%clk 0:02:56.3]}
2... d5 {[%clk 0:02:59]} 3. exd5 {[%clk 0:02:55.8]} 3... exd5 {[%clk 0:02:58.6]}
4. c4 {[%clk 0:02:55.2]} 4... Nf6 {[%clk 0:02:57.6]} 5. h3 {[%clk 0:02:54]} 5...
Bd6 {[%clk 0:02:56.7]} 6. Nf3 {[%clk 0:02:53.8]} 6... O-O {[%clk 0:02:56.2]} 7.
Be3 {[%clk 0:02:52]} 7... Re8 {[%clk 0:02:53.8]} 8. c5 {[%clk 0:02:52]} 8... Bf4
{[%clk 0:02:52]} 9. Qd2 {[%clk 0:02:49.1]} 9... Qe7 {[%clk 0:02:45]} 10. Be2
{[%clk 0:02:32.9]} 10... Bxe3 {[%clk 0:02:44]} 11. fxe3 {[%clk 0:02:32.7]} 11...
Qxe3 {[%clk 0:02:43.4]} 12. Qxe3 {[%clk 0:02:32.9]} 12... Rxe3 {[%clk
0:02:44.3]} 13. Kf2 {[%clk 0:02:31.6]} 13... Re7 {[%clk 0:02:38.1]} 14. Nc3
{[%clk 0:02:25.3]} 14... c6 {[%clk 0:02:36.3]} 15. Rhe1 {[%clk 0:02:19.7]} 15...
Bf5 {[%clk 0:02:33]} 16. Nh4 {[%clk 0:02:12.2]} 16... Ne4+ {[%clk 0:02:21.4]}
17. Nxe4 {[%clk 0:02:08.3]} 17... Bxe4 {[%clk 0:02:20.6]} 18. Bf3 {[%clk
0:02:06.7]} 18... Nd7 {[%clk 0:02:16.1]} 19. Nf5 {[%clk 0:01:58.5]} 19... Re6
{[%clk 0:02:09.3]} 20. Bxe4 {[%clk 0:01:44]} 20... Rxe4 {[%clk 0:02:04.9]} 21.
Rxe4 {[%clk 0:01:42.8]} 21... dxe4 {[%clk 0:02:04.9]} 22. Nd6 {[%clk 0:01:42.6]}
22... f5 {[%clk 0:01:55.3]} 23. Nxf5 {[%clk 0:01:38.4]} 23... Rf8 {[%clk
0:01:54.7]} 24. g4 {[%clk 0:01:38.5]} 24... g6 {[%clk 0:01:54.1]} 0-1

[Event "Betsys MČR v online bleskovém šachu 2021"]
[Site "Chess.com"]
[Date "2021.04.17"]
[Round "13"]
[White "DrDANDog"]
[Black "g4g5g4g5"]
[Result "0-1"]
[WhiteElo "1791"]
[BlackElo "1999"]
[TimeControl "180+1"]
[EndTime "11:07:39 PDT"]
[Termination "Uživatel g4g5g4g5 zvítězil matem"]

1. e4 {[%clk 0:02:56.4]} 1... e5 {[%clk 0:02:59.4]} 2. Nf3 {[%clk 0:02:56.7]}
2... Nc6 {[%clk 0:02:59.5]} 3. Bc4 {[%clk 0:02:57]} 3... Nf6 {[%clk 0:02:59.1]}
4. O-O {[%clk 0:02:55.9]} 4... Bc5 {[%clk 0:02:58.4]} 5. d3 {[%clk 0:02:55.4]}
5... d6 {[%clk 0:02:56.8]} 6. Nc3 {[%clk 0:02:55.2]} 6... Bg4 {[%clk 0:02:55.2]}
7. h3 {[%clk 0:02:54.9]} 7... Bh5 {[%clk 0:02:55.1]} 8. Be3 {[%clk 0:02:54]}
8... Nd4 {[%clk 0:02:52.1]} 9. Bxd4 {[%clk 0:02:53.1]} 9... Bxd4 {[%clk
0:02:49.8]} 10. Nd5 {[%clk 0:02:50]} 10... Nxd5 {[%clk 0:02:43.7]} 11. Bxd5
{[%clk 0:02:49.1]} 11... c6 {[%clk 0:02:43.7]} 12. Bb3 {[%clk 0:02:49.2]} 12...
Bb6 {[%clk 0:02:43.2]} 13. g4 {[%clk 0:02:48.5]} 13... Bg6 {[%clk 0:02:42.3]}
14. a4 {[%clk 0:02:44.6]} 14... a5 {[%clk 0:02:41.4]} 15. Qd2 {[%clk 0:02:42.7]}
15... h5 {[%clk 0:02:31.5]} 16. Kg2 {[%clk 0:02:40.5]} 16... hxg4 {[%clk
0:02:26.2]} 17. hxg4 {[%clk 0:02:41.4]} 17... Qd7 {[%clk 0:02:26.3]} 18. Kg3
{[%clk 0:02:35.9]} 18... O-O-O {[%clk 0:02:25.6]} 19. Rh1 {[%clk 0:02:25.5]}
19... f6 {[%clk 0:02:24.5]} 20. Nh4 {[%clk 0:02:22.8]} 20... Bf7 {[%clk
0:02:18.5]} 21. Nf5 {[%clk 0:02:19]} 21... Bxb3 {[%clk 0:02:10.5]} 22. cxb3
{[%clk 0:02:19.9]} 22... g6 {[%clk 0:02:06.3]} 23. Ne3 {[%clk 0:02:17.9]} 23...
d5 {[%clk 0:02:05.2]} 24. exd5 {[%clk 0:02:17.1]} 24... cxd5 {[%clk 0:02:04.6]}
25. Rhc1+ {[%clk 0:02:12.6]} 25... Kb8 {[%clk 0:02:04.4]} 26. b4 {[%clk
0:01:59.6]} 26... f5 {[%clk 0:02:04]} 27. gxf5 {[%clk 0:01:49.1]} 27... gxf5
{[%clk 0:02:04.1]} 28. Kg2 {[%clk 0:01:49.5]} 28... f4 {[%clk 0:02:00.5]} 29.
Nc2 {[%clk 0:01:40.9]} 29... Qh3+ {[%clk 0:01:58.8]} 30. Kg1 {[%clk 0:01:40.9]}
30... Rdg8# {[%clk 0:01:56.4]} 0-1

[Event "Betsys MČR v online bleskovém šachu 2021"]
[Site "Chess.com"]
[Date "2021.04.17"]
[Round "13"]
[White "zarathutra"]
[Black "vasekpaulus"]
[Result "0-1"]
[WhiteElo "1827"]
[BlackElo "2057"]
[TimeControl "180+1"]
[EndTime "11:07:40 PDT"]
[Termination "Uživatel vasekpaulus zvítězil po vzdání soupeře"]

1. d4 {[%clk 0:03:00.9]} 1... Nf6 {[%clk 0:02:59.2]} 2. c4 {[%clk 0:03:01.2]}
2... c5 {[%clk 0:02:59.5]} 3. d5 {[%clk 0:03:01.2]} 3... b5 {[%clk 0:02:58.9]}
4. cxb5 {[%clk 0:03:02.1]} 4... a6 {[%clk 0:02:59.4]} 5. bxa6 {[%clk 0:03:01.2]}
5... g6 {[%clk 0:02:59.7]} 6. Nc3 {[%clk 0:02:59.1]} 6... Bg7 {[%clk 0:02:59.2]}
7. e4 {[%clk 0:02:59.1]} 7... Qa5 {[%clk 0:02:59]} 8. Qd2 {[%clk 0:02:41.5]}
8... O-O {[%clk 0:02:53.8]} 9. Nf3 {[%clk 0:02:39.7]} 9... Bxa6 {[%clk
0:02:52.9]} 10. Bxa6 {[%clk 0:02:39.3]} 10... Qxa6 {[%clk 0:02:53]} 11. Qe2
{[%clk 0:02:29]} 11... d6 {[%clk 0:02:51.7]} 12. Nd2 {[%clk 0:02:22.8]} 12...
Qxe2+ {[%clk 0:02:48]} 13. Nxe2 {[%clk 0:02:21.8]} 13... Na6 {[%clk 0:02:48.2]}
14. O-O {[%clk 0:02:21.6]} 14... Nb4 {[%clk 0:02:48.2]} 15. a3 {[%clk
0:02:14.5]} 15... Rfb8 {[%clk 0:02:48]} 16. f3 {[%clk 0:01:52.2]} 16... Nd3
{[%clk 0:02:47.5]} 17. Ra2 {[%clk 0:01:40.3]} 17... Nd7 {[%clk 0:02:44.4]} 18.
b3 {[%clk 0:01:34.3]} 18... Nxc1 {[%clk 0:02:38.8]} 19. Rxc1 {[%clk 0:01:31.6]}
19... Ne5 {[%clk 0:02:35.7]} 20. a4 {[%clk 0:01:24.7]} 20... Nd3 {[%clk
0:02:33.3]} 21. Nc3 {[%clk 0:01:08.4]} 21... Nxc1 {[%clk 0:02:30.8]} 22. Rc2
{[%clk 0:00:58.1]} 22... Bxc3 {[%clk 0:02:26.8]} 23. Rxc3 {[%clk 0:00:56.4]}
23... Ne2+ {[%clk 0:02:26.6]} 0-1

[Event "Betsys MČR v online bleskovém šachu 2021"]
[Site "Chess.com"]
[Date "2021.04.17"]
[Round "13"]
[White "bezzuton"]
[Black "SamikGame"]
[Result "0-1"]
[WhiteElo "1586"]
[BlackElo "1729"]
[TimeControl "180+1"]
[EndTime "11:07:45 PDT"]
[Termination "Uživatel SamikGame zvítězil po vzdání soupeře"]

1. d4 {[%clk 0:02:59.9]} 1... d5 {[%clk 0:02:56.9]} 2. Bf4 {[%clk 0:03:00.4]}
2... Nf6 {[%clk 0:02:53.8]} 3. e3 {[%clk 0:02:59.2]} 3... e6 {[%clk 0:02:51.4]}
4. Nd2 {[%clk 0:02:59.4]} 4... Bd6 {[%clk 0:02:47.8]} 5. Bg3 {[%clk 0:02:55.9]}
5... O-O {[%clk 0:02:47.9]} 6. c3 {[%clk 0:02:54.7]} 6... h6 {[%clk 0:02:42.4]}
7. Bd3 {[%clk 0:02:54.2]} 7... Bxg3 {[%clk 0:02:37.7]} 8. hxg3 {[%clk
0:02:53.9]} 8... Qd6 {[%clk 0:02:34.3]} 9. e4 {[%clk 0:02:52.8]} 9... dxe4
{[%clk 0:02:29.5]} 10. Nxe4 {[%clk 0:02:52.2]} 10... Nxe4 {[%clk 0:02:27.5]} 11.
Bxe4 {[%clk 0:02:51.5]} 11... e5 {[%clk 0:02:26.6]} 12. Nf3 {[%clk 0:02:51.1]}
12... exd4 {[%clk 0:02:23.4]} 13. Qxd4 {[%clk 0:02:38.1]} 13... Qxd4 {[%clk
0:02:19.8]} 14. Nxd4 {[%clk 0:02:37.2]} 14... Re8 {[%clk 0:02:16.8]} 15. f3
{[%clk 0:02:31.5]} 15... f5 {[%clk 0:02:12.6]} 16. O-O {[%clk 0:02:31]} 16...
fxe4 {[%clk 0:02:12.4]} 17. fxe4 {[%clk 0:02:29.1]} 17... Rxe4 {[%clk
0:02:04.1]} 18. Nb5 {[%clk 0:02:28.5]} 18... Na6 {[%clk 0:02:01.9]} 19. Rad1
{[%clk 0:02:20.7]} 19... Bg4 {[%clk 0:01:59.8]} 20. Rd2 {[%clk 0:02:11.8]} 20...
Rae8 {[%clk 0:01:56.3]} 21. Rf4 {[%clk 0:02:05.1]} 21... Re1+ {[%clk 0:01:53.1]}
22. Kh2 {[%clk 0:02:04]} 22... Rc1 {[%clk 0:01:43.8]} 23. Rfd4 {[%clk
0:02:04.9]} 23... Ree1 {[%clk 0:01:35.4]} 0-1